bitfinex/quotes_ETHUSD_20250904
["timestamp","ask_amount","ask_price","bid_price","bid_amount"]
[1756994627259,0.1144,4370.0,4369.7,3.24517157]
[1756994627456,0.1144,4370.0,4369.8,2.77032882]
[1756994627657,0.1144,4370.0,4369.9,2.28838188]
[1756994627856,3.0,4370.8,4370.1,2.28824774]
[1756994628060,20.48486142,4371.5,4369.9,0.9567]
[1756994628061,3.0,4371.4,4369.9,0.9567]
[1756994628271,0.1144,4370.5,4370.2,2.28821603]
[1756994628596,0.1144,4370.5,4369.7,0.1144]
[1756994628597,0.1144,4370.5,4370.3,0.9567]
[1756994628894,0.1144,4370.5,4369.7,0.1144]
[1756994629066,0.1144,4370.5,4369.7,4.2204]
[1756994629268,0.1144,4370.5,4370.1,2.28827712]
[1756994629470,0.1144,4370.5,4369.9,2.28838188]
[1756994629670,0.1136,4370.5,4369.9,2.28838188]
[1756994629872,0.1136,4370.5,4369.7,0.1144]
[1756994630174,0.1144,4370.8,4370.5,2.28802281]
[1756994630369,0.1144,4370.8,4370.2,0.1144]
[1756994630571,0.1144,4370.3,4369.8,5.0597]
[1756994630772,0.1144,4370.3,4369.8,0.9567]
[1756994630983,0.1144,4370.3,4369.1,0.4748]
[1756994631293,0.38676792,4370.3,4369.8,2.28842552]
[1756994631485,0.38676792,4370.3,4369.8,2.28840206]
[1756994631680,0.1144,4370.0,4369.8,2.28838584]
[1756994631885,21.09530578,4369.9,4368.9,0.004]
[1756994632085,19.54300578,4369.8,4368.9,0.004]
[1756994632260,4.101,4369.9,4368.9,0.004]
[1756994632466,16.95310578,4369.8,4368.9,0.004]
[1756994632772,2.28885328,4369.0,4368.9,0.004]
[1756994633597,16.54300578,4369.2,4368.9,0.004]
[1756994633796,2.28885328,4369.0,4368.9,0.004]
[1756994634007,5.4069,4369.1,4368.6,0.003]
[1756994634202,18.83235411,4368.1,4367.8,0.025]
[1756994634439,8.815,4368.0,4367.8,0.025]
[1756994634565,3.0,4367.9,4367.8,0.025]
[1756994635492,19.54300578,4367.9,4367.8,0.025]
[1756994635799,20.69248781,4367.9,4367.8,0.025]
[1756994635999,22.98191751,4367.9,4367.8,0.025]
[1756994636311,20.69248781,4367.9,4367.8,0.025]
[1756994636675,16.54300578,4367.1,4365.9,0.4819]
[1756994636882,18.22900578,4367.1,4365.9,0.4819]
[1756994637070,4.152,4367.0,4365.9,0.4819]
[1756994637397,4.152,4367.0,4366.3,0.4748]
[1756994637601,5.837,4367.1,4366.3,0.4748]
[1756994637802,3.0,4367.9,4367.2,2.28979466]
[1756994638105,4.151,4367.8,4366.9,0.9567]
[1756994638602,16.54300578,4367.0,4365.8,0.025]
[1756994638817,8.80630058,4366.9,4365.8,0.025]
[1756994639311,8.80630058,4366.9,4365.9,2.29047809]
[1756994639605,8.80630058,4366.9,4365.8,0.025]
[1756994640314,8.80630058,4366.9,4366.1,0.9439]
[1756994640315,3.0,4366.9,4366.1,0.9439]
[1756994640461,4.174,4366.9,4366.1,0.9439]
[1756994640665,4.174,4366.9,4366.3,2.29023889]
[1756994640916,4.174,4366.9,4365.8,0.025]
[1756994640917,6.46395397,4366.9,4365.8,0.025]
[1756994641065,9.46395397,4366.9,4365.8,0.025]
[1756994641498,7.174,4366.9,4365.8,0.025]
[1756994641699,7.174,4366.9,4366.0,0.9439]
[1756994641899,7.2884,4366.9,4366.0,0.9439]
[1756994642299,8.18584,4366.9,4366.2,2.29032088]
[1756994642468,8.18584,4366.9,4365.8,0.025]
[1756994643091,3.0,4366.8,4365.8,0.025]
[1756994643295,3.0,4366.8,4365.8,2.31552115]
[1756994643481,3.0,4366.8,4365.8,2.31548969]
[1756994643682,0.1144,4365.9,4365.8,2.31553094]
[1756994643886,0.1144,4365.9,4365.8,0.025]
[1756994644303,0.1144,4365.9,4365.8,2.61543094]
[1756994644514,0.1144,4365.9,4365.8,2.31553094]
[1756994644908,0.1144,4365.9,4365.8,3.55933094]
[1756994645109,18.22900578,4367.2,4365.8,1.85379545]
[1756994645408,0.1144,4366.8,4366.7,2.29005885]
[1756994645594,0.1144,4366.8,4366.7,2.76705885]
[1756994646113,0.1144,4366.8,4366.3,0.4669]
[1756994646272,4.164,4366.8,4365.8,0.025]
[1756994646604,0.1144,4366.3,4365.8,0.025]
[1756994646804,16.54300578,4366.5,4365.8,0.025]
[1756994646805,0.1144,4365.9,4365.8,0.025]
[1756994647185,0.1144,4365.9,4365.8,2.31553094]
[1756994647581,0.1144,4365.9,4365.8,3.55933094]
[1756994647772,0.1144,4365.9,4365.8,0.025]
[1756994647974,0.4598,4367.8,4366.5,2.29015658]
[1756994648216,0.1144,4366.3,4365.8,0.502]
[1756994648508,0.1144,4366.3,4366.2,2.5902211]
[1756994648703,4.16,4366.8,4366.7,2.29005885]
[1756994648873,2.783,4366.9,4366.6,2.29010407]
[1756994649074,2.783,4366.9,4366.4,2.29017506]
[1756994649274,2.783,4366.9,4366.2,0.4669]
[1756994649506,0.1144,4366.5,4366.4,0.477]
[1756994649704,0.1144,4366.7,4366.6,2.29008108]
[1756994649904,0.1144,4366.7,4366.6,2.61347919]
[1756994650091,0.907,4367.9,4367.4,2.28965986]
[1756994650292,0.907,4367.9,4367.1,2.28984909]
[1756994650293,0.1144,4367.2,4367.1,2.28984909]
[1756994650503,0.907,4367.9,4367.6,2.28957359]
[1756994650807,0.025,4368.8,4367.8,2.28948211]
[1756994650984,16.54300578,4368.7,4367.8,0.62323821]
[1756994651182,0.1144,4367.9,4367.7,0.477]
[1756994651388,0.1144,4367.9,4367.8,3.53328211]
[1756994651785,0.1144,4368.5,4367.8,1.3582]
[1756994651987,0.025,4368.8,4368.7,2.28901046]
[1756994652185,0.025,4368.8,4368.7,3.53281046]
[1756994652883,0.025,4368.8,4368.5,2.28908519]
[1756994652884,0.025,4368.8,4368.4,0.1144]
[1756994653223,0.1144,4368.5,4368.0,0.477]
[1756994653587,0.1144,4368.5,4366.8,1.687]
[1756994653588,4.16,4368.5,4367.3,2.88114154]
[1756994653887,0.1144,4368.1,4367.6,0.1144]
[1756994654097,0.1144,4368.1,4368.0,2.28937728]
[1756994654300,0.025,4368.8,4368.0,1.2438]
[1756994654515,0.1144,4368.6,4368.5,2.28906381]
[1756994654686,0.025,4368.8,4368.5,3.53287324]
[1756994654881,0.025,4368.8,4368.7,2.28901046]
[1756994655201,0.0242,4368.8,4368.7,2.28901046]
[1756994655402,0.0242,4368.8,4367.8,0.4669]
[1756994655606,0.1386,4368.8,4368.2,0.1144]
[1756994655782,0.0242,4368.8,4367.5,0.477]
[1756994656113,0.1144,4368.2,4367.4,0.1144]
[1756994656299,4.158,4368.2,4366.9,1.687]
[1756994656499,0.1144,4367.5,4367.0,2.28988436]
[1756994656680,0.1144,4367.5,4367.4,2.5895918]
[1756994657017,0.41822,4368.7,4367.4,0.4143]
[1756994657018,0.1144,4368.1,4367.4,0.4143]
[1756994657312,0.1144,4367.8,4367.6,2.2895859]
[1756994657530,0.1144,4367.8,4367.7,2.76653453]
[1756994657681,0.1144,4367.8,4367.7,0.477]
[1756994657881,0.1144,4367.8,4367.1,0.1144]
[1756994658087,2.28939186,4368.0,4367.0,0.477]
[1756994658409,0.1144,4367.5,4367.0,0.477]
[1756994658801,0.1144,4367.5,4367.0,2.28988687]
[1756994659110,0.1144,4367.5,4367.4,2.2896918]
[1756994659279,0.1144,4367.5,4367.4,2.7666918]
[1756994659488,0.4263,4367.5,4366.2,0.4669]
[1756994659707,0.1144,4366.9,4366.2,0.4669]
[1756994659900,0.1144,4366.9,4366.4,2.29017599]
[1756994660107,0.1144,4366.9,4366.2,2.75720418]
[1756994660410,0.1144,4366.9,4366.8,3.09190641]
[1756994660612,0.1144,4367.1,4366.8,4.09700374]
[1756994660912,0.1144,4367.1,4367.0,2.28990153]
[1756994661117,0.1144,4367.1,4367.0,3.08190153]
[1756994661291,5.839,4368.1,4367.7,2.2895219]
[1756994661482,5.9534,4368.1,4367.8,2.28943936]
[1756994661687,5.839,4368.1,4367.4,0.477]
[1756994662026,5.9534,4368.1,4368.0,2.28937728]
[1756994662537,13.22559757,4368.9,4368.0,0.7769]
[1756994662538,0.1144,4368.5,4368.0,0.7769]
[1756994662829,0.1144,4368.1,4367.5,2.28963073]
[1756994663029,0.1144,4368.1,4367.1,0.5914]
[1756994663208,0.1144,4367.8,4367.1,0.5914]
[1756994663648,0.1144,4367.8,4367.1,0.1144]
[1756994663816,0.1144,4367.2,4366.8,0.025]
[1756994664013,2.60185397,4366.9,4366.8,0.025]
[1756994664237,9.8911,4366.9,4365.0,0.01]
[1756994664533,13.22559757,4366.6,4365.0,0.01]
[1756994664706,2.29046912,4366.0,4365.0,2.3009319]
[1756994664906,6.78937848,4365.9,4365.0,0.01]
[1756994665137,20.47477605,4365.9,4365.0,0.01]
[1756994665443,23.69417605,4365.9,4365.0,0.01]
[1756994665770,25.96208402,4365.9,4365.0,0.01]
[1756994666306,25.65018402,4365.9,4365.0,0.01]
[1756994666627,2.29089826,4365.1,4365.0,0.01]
[1756994666830,24.38749583,4365.1,4365.0,0.01]
[1756994667140,25.06669583,4365.1,4365.0,0.01]
[1756994667352,2.29184332,4363.3,4361.8,0.025]
[1756994667642,8.17484332,4363.3,4361.9,3.23646277]
[1756994667839,11.63464332,4363.3,4361.8,0.025]
[1756994668008,11.85404332,4363.3,4361.8,0.025]
[1756994668203,6.11098483,4363.3,4361.8,0.025]
[1756994668532,12.60582815,4363.3,4361.8,0.025]
[1756994668720,2.29205345,4362.9,4361.8,0.025]
[1756994668922,2.29221106,4362.6,4361.8,0.025]
[1756994669143,1.687,4363.3,4361.8,0.502]
[1756994669374,6.00325976,4363.2,4361.8,0.502]
[1756994669528,6.00325976,4363.2,4362.1,2.29243372]
[1756994669729,6.00325976,4363.2,4361.8,0.025]
[1756994669926,1.79125976,4363.2,4362.0,0.477]
[1756994670134,4.222,4363.1,4361.8,0.025]
[1756994670342,13.22559757,4363.0,4362.2,0.4922]
[1756994670657,4.222,4363.1,4362.2,0.4922]
[1756994670951,4.222,4363.1,4361.9,0.4922]
[1756994671153,4.222,4363.1,4362.9,2.29203916]
[1756994671322,4.252,4363.6,4363.2,2.29189585]
[1756994671517,4.54050636,4363.6,4362.9,0.4922]
[1756994671818,4.54050636,4363.6,4362.5,0.003]
[1756994672353,13.22559757,4363.0,4362.5,0.003]
[1756994672650,2.29221106,4362.6,4362.5,0.003]
[1756994673157,1.688,4362.9,4362.5,0.003]
[1756994673463,4.264,4362.6,4362.5,0.003]
[1756994673620,7.02211106,4362.6,4362.5,0.003]
[1756994673814,10.02211106,4362.6,4362.5,0.003]
[1756994674019,10.35281106,4362.6,4362.5,0.003]
[1756994674247,10.13651106,4362.6,4362.5,0.003]
[1756994674448,12.40441903,4362.6,4362.5,0.003]
[1756994674619,12.62071903,4362.6,4362.5,0.003]
[1756994674818,12.62071903,4362.6,4361.8,0.025]
[1756994674819,3.0,4362.5,4361.8,0.025]
[1756994675024,3.0,4361.8,4360.8,0.025]
[1756994675236,1.818,4362.4,4360.8,0.025]
[1756994675463,3.622,4363.2,4361.1,3.0]
[1756994675654,13.22559757,4363.0,4361.2,1.1883231]
[1756994675839,13.22559757,4363.0,4361.2,0.4922]
[1756994675840,0.4659,4362.9,4361.2,0.4922]
[1756994676047,13.22559757,4363.0,4361.2,0.4922]
[1756994676048,4.279,4362.8,4361.2,0.4922]
[1756994676622,3.0,4362.7,4361.2,0.4922]
[1756994676826,2.29249863,4362.1,4360.8,0.025]
[1756994677059,13.22559757,4361.5,4360.8,0.025]
[1756994677370,7.89713717,4362.0,4358.8,0.025]
[1756994677543,7.89713717,4362.0,4358.9,2.6263]
[1756994677544,7.288,4361.9,4358.9,2.6263]
[1756994677722,13.22559757,4361.4,4359.0,1.20523]
[1756994677924,13.22559757,4361.4,4359.1,0.9383]
[1756994678123,4.7679,4361.3,4359.2,3.23229244]
[1756994678345,4.302,4361.3,4359.5,2.29384103]
[1756994678545,5.989,4362.0,4359.6,1.26380805]
[1756994678720,4.301,4362.4,4359.8,0.792]
[1756994678920,2.29258556,4361.9,4359.9,2.6273]
[1756994679121,3.0,4361.7,4359.9,0.9383]
[1756994679429,13.22559757,4360.8,4359.2,0.4922]
[1756994679635,5.63055976,4360.7,4359.2,0.4922]
[1756994679935,2.29358602,4360.0,4358.8,0.025]
[1756994680261,4.308,4359.9,4358.9,0.02294156]
[1756994680463,1.78845976,4360.7,4358.9,0.4922]
[1756994680632,13.22559757,4360.8,4359.0,0.4461]
[1756994680836,4.306,4360.7,4359.0,0.4461]
[1756994681060,5.995,4360.7,4358.9,0.4922]
[1756994681226,5.995,4360.7,4358.8,0.025]
[1756994681227,2.29358985,4360.0,4358.8,0.025]
[1756994681422,4.307,4359.9,4358.8,0.025]
[1756994681623,0.66006276,4359.8,4358.8,0.025]
[1756994682025,0.66006276,4359.8,4358.7,2.29424723]
[1756994682334,0.66006276,4359.8,4358.4,0.2014]
[1756994682676,4.303,4360.5,4359.8,0.025]
[1756994682979,1.689,4360.9,4360.0,2.29355434]
[1756994683133,1.689,4361.7,4359.9,0.792]
[1756994683473,1.689,4361.7,4359.8,0.4711]
[1756994683474,1.689,4361.7,4360.1,0.792]
[1756994683674,1.689,4361.7,4361.3,2.29287578]
[1756994683834,4.302,4361.9,4361.4,0.4922]
[1756994684030,0.1058081,4362.1,4361.7,2.29268404]
[1756994684604,13.25059757,4361.8,4360.0,0.4922]
[1756994684880,2.78353739,4361.8,4360.0,0.4922]
[1756994685080,2.29295496,4361.2,4360.1,2.29351293]
[1756994685279,13.22559757,4361.5,4360.0,0.6066]
[1756994685280,0.1144,4360.6,4360.0,0.6066]
[1756994685968,0.1144,4360.6,4359.8,0.025]
[1756994685969,2.29326239,4360.6,4359.8,0.025]
[1756994686153,0.1144,4359.9,4359.8,0.025]
[1756994687452,0.1144,4359.9,4359.8,0.5172]
[1756994687688,1.689,4361.0,4359.8,0.025]
[1756994687987,0.1144,4360.6,4359.8,0.6316]
[1756994688156,0.1144,4360.6,4359.9,0.67816]
[1756994688359,0.1144,4360.6,4360.0,2.29357798]
[1756994688582,0.1144,4360.6,4360.5,2.29331498]
[1756994688892,4.303,4361.7,4360.7,2.29320136]
[1756994689186,0.025,4361.8,4361.0,0.1144]
[1756994689386,0.1144,4361.6,4361.5,2.29278917]
[1756994689588,0.025,4361.8,4361.5,0.9383]
[1756994689792,0.025,4361.8,4361.7,2.29268404]
[1756994690088,0.1075952,4362.0,4361.9,2.29257892]
[1756994690291,0.1075952,4362.0,4361.9,2.88159368]
[1756994690589,0.1144,4362.5,4362.4,2.29231615]
[1756994690786,0.025,4362.8,4362.4,1.689]
[1756994691094,0.025,4362.8,4362.7,2.29215852]
[1756994691289,0.025,4362.8,4362.5,0.4922]
[1756994691490,4.7829,4362.7,4361.2,0.4922]
[1756994691688,0.48079,4362.6,4360.4,1.689]
[1756994691889,0.4659,4362.5,4360.2,0.4461]
[1756994692098,3.0,4361.8,4360.2,0.4461]
[1756994692301,4.32,4361.8,4360.2,0.4461]
[1756994692475,2.29259293,4361.9,4360.5,2.29328145]
[1756994692669,3.0,4362.2,4360.6,1.689]
[1756994692884,3.0,4362.2,4360.6,3.98225275]
[1756994693081,2.29255496,4362.0,4360.6,1.689]
[1756994693368,3.0,4361.8,4359.8,0.025]
[1756994693578,2.293478,4360.2,4359.8,0.025]
[1756994693992,2.29352545,4360.1,4359.8,0.025]
[1756994694301,0.45868085,4360.2,4359.8,0.025]
[1756994694599,4.7829,4360.8,4359.8,0.025]
[1756994695302,2.29337019,4360.4,4359.8,0.025]
[1756994695477,4.317,4360.8,4359.8,0.025]
[1756994695877,6.61020296,4360.8,4359.8,2.318677]
[1756994696079,4.317,4360.8,4359.8,0.025]
[1756994696302,5.2176,4360.8,4359.8,0.025]
[1756994696517,2.29336758,4360.4,4359.8,0.025]
[1756994696718,2.29342297,4360.3,4359.8,0.025]
[1756994697010,2.29327165,4360.6,4359.8,0.025]
[1756994697213,5.2176,4360.8,4359.8,0.025]
[1756994697416,3.28388776,4360.7,4359.8,0.025]
[1756994697622,0.98917695,4360.7,4359.8,0.025]
[1756994697772,2.29331642,4360.5,4359.8,0.025]
[1756994697976,0.98917695,4360.7,4359.8,0.025]
[1756994698511,4.317,4360.8,4360.2,2.29342973]
[1756994698805,1.689,4361.0,4359.9,0.4922]
[1756994698997,4.301,4361.4,4360.0,0.4461]
[1756994699196,13.22559757,4361.6,4360.0,2.1361]
[1756994699394,1.69,4361.7,4360.1,0.26533]
[1756994699909,1.69,4361.7,4361.1,2.29298046]
[1756994700129,13.69149757,4362.3,4360.2,0.792]
[1756994700420,13.22559757,4362.0,4360.3,5.989]
[1756994700595,13.22559757,4362.0,4360.3,1.69]
[1756994700919,1.69,4362.6,4360.3,1.69]
[1756994700920,5.987,4362.6,4361.6,2.29272718]
[1756994701124,0.4399,4362.5,4360.4,0.914]
[1756994701422,0.1144,4361.2,4360.5,0.1144]
[1756994701625,0.1144,4361.2,4360.7,2.2932098]
[1756994701785,0.1144,4361.2,4360.7,0.4785]
[1756994702113,0.1144,4361.2,4361.0,2.29305205]
[1756994702413,0.025,4362.8,4362.7,2.29215852]
[1756994702722,0.025,4362.8,4362.7,2.77065852]
[1756994702924,0.025,4362.8,4362.7,3.20615852]
[1756994703079,0.025,4362.8,4360.7,0.4785]
[1756994703389,0.025,4362.8,4359.8,0.025]
[1756994703390,13.22559757,4361.4,4360.3,0.1144]
[1756994703590,0.025,4362.8,4360.4,0.93693367]
[1756994703806,0.1144,4361.9,4361.3,0.1144]
[1756994703986,0.1144,4361.9,4361.3,1.8034]
[1756994704312,0.1144,4361.9,4361.3,2.50654]
[1756994704521,0.1144,4362.6,4361.8,0.1144]
[1756994704723,0.1144,4362.6,4361.9,2.29253228]
[1756994704904,0.1144,4362.6,4361.4,3.2067976]
[1756994704905,2.29226588,4362.5,4361.4,3.2067976]
[1756994705084,0.1144,4362.2,4361.6,0.1144]
[1756994705430,0.025,4362.8,4361.4,0.5929]
[1756994705586,0.025,4362.8,4361.7,0.792]
[1756994705787,0.025,4362.8,4362.5,0.1144]
[1756994705984,0.0242,4362.8,4362.5,0.1144]
[1756994706182,0.0242,4362.8,4362.6,0.4785]
[1756994706378,0.0242,4362.8,4361.8,0.4785]
[1756994706610,0.1144,4362.7,4362.1,0.1144]
[1756994706813,2.31632801,4362.8,4361.5,1.689]
[1756994707027,2.31632801,4362.8,4361.7,2.29267101]
[1756994707028,0.1144,4362.2,4361.7,2.29267101]
[1756994707182,0.0242,4362.8,4361.8,0.93692631]
[1756994707516,0.0242,4362.8,4362.1,0.1144]
[1756994707717,0.1144,4362.5,4361.9,0.1144]
[1756994707918,0.1144,4362.5,4362.0,2.29252636]
[1756994708228,0.1144,4362.5,4362.4,2.29231615]
[1756994708383,0.1144,4362.5,4362.4,3.20631615]
[1756994708582,0.0242,4362.8,4362.7,2.29215852]
[1756994708833,0.0242,4362.8,4362.7,6.6300801]
[1756994708983,0.0242,4362.8,4362.7,3.99815852]
[1756994709184,0.0242,4362.8,4362.7,7.63555852]
[1756994709494,0.0242,4362.8,4362.7,3.32055852]
[1756994709696,0.0242,4362.8,4362.7,0.1144]
[1756994709895,0.0242,4362.8,4362.3,1.689]
[1756994710099,0.1144,4362.7,4362.1,0.1144]
[1756994710423,0.0242,4362.8,4362.2,0.4355]
[1756994710594,0.0242,4362.8,4362.5,0.1144]
[1756994710815,0.0242,4362.8,4362.7,2.29215852]
[1756994711130,0.0242,4362.8,4362.7,5.8244801]
[1756994711330,0.0242,4362.8,4362.7,10.11455852]
[1756994711541,0.0242,4362.8,4362.7,2.7174]
[1756994711824,0.0242,4362.8,4362.7,1.689]
[1756994712181,0.0242,4362.8,4362.0,1.689]
[1756994712617,0.0242,4362.8,4362.0,3.98150701]
[1756994712886,2.29225434,4362.6,4361.6,3.98170042]
[1756994713211,0.0242,4362.8,4361.7,4.33692684]
[1756994713388,0.0242,4362.8,4362.6,2.29217644]
[1756994713729,0.0242,4362.8,4362.7,2.29215852]
[1756994714391,0.0242,4362.8,4362.7,2.77065852]
[1756994714586,0.0242,4362.8,4362.7,7.07865852]
[1756994714791,0.0242,4362.8,4362.7,8.62015073]
[1756994715186,0.0242,4362.8,4362.7,8.18365073]
[1756994715391,0.0242,4362.8,4362.7,8.61915073]
[1756994715748,0.0242,4362.8,4362.7,7.51315852]
[1756994716236,0.0242,4362.8,4362.7,8.30515852]
[1756994716585,0.0252,4362.8,4362.7,8.30515852]
[1756994717183,0.001,4363.2,4362.8,0.792]
[1756994717387,0.001,4363.7,4363.6,3.08368576]
[1756994717621,0.001,4363.7,4363.6,5.16025434]
[1756994717816,0.001,4363.7,4363.6,10.37225434]
[1756994718120,0.001,4363.7,4363.6,10.32225434]
[1756994718346,0.001,4363.7,4363.6,10.31995434]
[1756994718619,0.001,4363.7,4363.6,10.31695434]
[1756994718915,0.001,4363.7,4363.6,9.52395434]
[1756994719122,0.001,4363.7,4363.6,4.79445434]
[1756994719320,0.001,4363.7,4363.6,8.27368576]
[1756994719492,0.001,4363.7,4363.6,1.689]
[1756994719688,0.001,4363.7,4363.6,5.98]
[1756994720320,0.001,4363.7,4363.6,1.689]
[1756994720522,2.29168576,4363.6,4362.9,4.288]
[1756994720724,0.4409,4363.7,4362.4,0.4785]
[1756994720923,15.30999963,4363.2,4361.6,1.689]
[1756994721133,3.4399,4363.1,4360.8,0.025]
[1756994721424,5.29221548,4362.6,4361.3,2.29288013]
[1756994721622,0.1144,4362.1,4361.4,0.1144]
[1756994721823,0.1144,4362.1,4361.5,4.308]
[1756994722016,0.1144,4362.3,4361.4,0.1144]
[1756994722230,3.9811068,4362.8,4361.0,4.7865]
[1756994722231,0.4399,4362.6,4361.3,4.307]
[1756994722529,0.1144,4361.9,4361.2,0.1144]
[1756994723045,0.1144,4361.9,4361.2,2.40729838]
[1756994723208,0.1144,4361.9,4361.3,2.29288013]
[1756994723414,0.1144,4361.9,4361.8,2.31763148]
[1756994723655,0.1689,4362.7,4361.8,0.025]
[1756994723946,5.995,4362.8,4362.2,2.29239924]
[1756994724123,1.689,4363.5,4362.0,0.4355]
[1756994724320,0.1144,4363.0,4362.3,0.1144]
[1756994724632,0.1144,4363.0,4361.8,3.519]
[1756994724633,15.30999963,4362.7,4361.8,0.025]
[1756994724834,0.1144,4362.2,4361.8,0.025]
[1756994725636,2.73238027,4362.1,4361.8,0.025]
[1756994725810,0.1144,4362.2,4361.8,0.025]
[1756994726242,2.7323738,4362.1,4361.8,0.025]
[1756994726450,2.40697892,4361.9,4361.8,0.025]
[1756994726612,0.1144,4361.9,4361.8,0.025]
[1756994727010,2.40697892,4361.9,4361.8,0.025]
[1756994727410,0.1144,4361.9,4361.8,0.025]
[1756994727948,0.39908479,4361.9,4361.8,0.025]
[1756994728108,0.1144,4361.9,4361.8,0.025]
[1756994728310,2.40697892,4361.9,4361.8,0.025]
[1756994728509,2.84687892,4361.9,4361.8,0.025]
[1756994728715,3.12957892,4361.9,4361.8,0.025]
[1756994729044,6.12957892,4361.9,4361.8,0.025]
[1756994729215,6.97178721,4361.9,4361.8,0.025]
[1756994729617,2.29310463,4360.9,4360.8,0.025]
[1756994729814,9.70150463,4360.9,4360.8,0.025]
[1756994730049,10.42410463,4360.9,4360.8,0.025]
[1756994730249,7.14140463,4360.9,4360.8,0.025]
[1756994730417,9.4093126,4360.9,4360.8,0.025]
[1756994730616,9.6920126,4360.9,4360.8,0.025]
[1756994730944,2.29347277,4360.2,4359.7,0.004]
[1756994731147,23.6998724,4360.2,4359.7,0.004]
[1756994731348,2.29363058,4359.9,4359.7,0.004]
[1756994731548,2.29363058,4359.9,4358.4,0.2014]
[1756994731549,2.29414197,4359.0,4358.4,0.2014]
[1756994731846,2.29399889,4359.2,4356.2,0.4642]
[1756994731847,15.30999963,4358.4,4356.2,0.4642]
[1756994732047,15.30999963,4357.1,4355.7,0.4642]
[1756994732349,0.1144,4356.9,4355.7,2.76092449]
[1756994732549,4.4334,4356.9,4356.0,0.1144]
[1756994732847,0.1144,4356.9,4356.0,0.1144]
[1756994733018,4.4524,4356.9,4355.8,0.025]
[1756994733213,7.86670785,4356.9,4355.8,0.025]
[1756994733415,7.86670785,4356.9,4354.8,0.025]
[1756994733416,2.29550356,4356.4,4354.8,0.025]
[1756994733652,18.30999963,4355.1,4354.0,0.17247934]
[1756994733954,15.30999963,4354.6,4352.9,0.9293]
[1756994734124,15.30999963,4353.9,4352.9,0.4651]
[1756994734325,15.30999963,4353.9,4351.9,1.69]
[1756994734326,4.6317,4353.9,4350.9,0.71359026]
[1756994734526,15.30999963,4352.9,4351.5,2.29802389]
[1756994734730,4.625,4352.8,4351.6,2.29799541]
[1756994734941,15.30999963,4352.1,4350.9,0.68859026]
[1756994735143,18.30999963,4351.0,4350.9,0.68859026]
[1756994735338,18.30999963,4351.0,4348.1,1.0870103]
[1756994735339,29.98689011,4351.0,4348.1,0.59981175]
[1756994735549,29.98689011,4351.0,4346.4,0.63859026]
[1756994735550,0.792,4349.9,4346.4,0.63859026]
[1756994735750,0.2577,4349.8,4346.5,0.9293]
[1756994735935,0.618,4350.4,4346.6,1.76730648]
[1756994736114,5.97242863,4351.0,4346.6,1.76730648]
[1756994736115,0.2577,4352.0,4347.5,4.60034502]
[1756994736315,0.2577,4352.1,4350.6,2.29853138]
[1756994736575,11.2437616,4351.7,4349.6,0.4642]
[1756994736722,11.2437616,4353.0,4350.7,0.4642]
[1756994736923,5.1106,4352.5,4348.9,0.4651]
[1756994737151,0.2577,4352.4,4349.0,0.4642]
[1756994737467,11.2437616,4354.0,4349.5,1.792]
[1756994737649,11.2437616,4354.0,4349.6,0.9293]
[1756994737821,11.2437616,4352.6,4349.7,0.95229009]
[1756994738020,12.1247,4352.5,4349.7,0.4651]
[1756994738221,3.0,4352.4,4349.8,0.4642]
[1756994738445,0.8059,4352.3,4346.2,1.0]
[1756994738764,3.0,4351.7,4349.2,0.4642]
[1756994738962,3.0,4350.9,4348.9,0.4651]
[1756994739256,6.599,4350.8,4349.2,2.29926898]
[1756994739565,0.2716,4351.6,4349.3,2.6203]
[1756994739566,1.691,4351.6,4349.3,2.6203]
[1756994739723,1.595,4352.7,4349.6,0.792]
[1756994739930,1.691,4353.8,4350.8,0.792]
[1756994740262,1.594,4354.1,4351.0,3.0]
[1756994740570,2.29691717,4353.7,4351.1,0.9293]
[1756994740774,1.692,4353.6,4351.2,0.792]
[1756994740921,1.692,4353.6,4351.4,0.792]
[1756994741127,1.692,4353.6,4351.5,0.9293]
[1756994741459,0.025,4352.8,4351.7,3.08995252]
[1756994741665,0.025,4353.8,4353.7,2.29689689]
[1756994742159,0.025,4353.8,4353.7,0.9293]
[1756994742365,0.025,4353.8,4352.8,0.4651]
[1756994742667,0.025,4353.8,4352.1,2.29770874]
[1756994742668,0.025,4353.8,4352.1,0.4651]
[1756994742871,4.965,4353.8,4352.1,0.4651]
[1756994743172,0.025,4354.8,4352.2,2.99617688]
[1756994743461,0.3851468,4356.8,4355.1,0.792]
[1756994743462,0.025,4356.8,4355.1,0.792]
[1756994743646,0.025,4356.8,4355.2,1.692]
[1756994743849,2.29548253,4356.4,4355.0,0.4642]
[1756994744049,0.1152,4355.1,4354.5,0.1152]
[1756994744251,1.88,4356.3,4353.4,0.4642]
[1756994744468,0.1152,4354.5,4353.2,2.76224104]
[1756994744761,0.1152,4354.5,4352.5,0.5794]
[1756994744762,0.1152,4353.1,4352.5,0.5794]
[1756994744970,0.1152,4353.1,4352.5,0.4642]
[1756994745137,1.692,4354.7,4352.9,0.1152]
[1756994745332,1.692,4354.7,4354.0,2.29672909]
[1756994745529,1.692,4354.7,4353.0,2.1562]
[1756994746056,0.965,4355.2,4353.1,0.9293]
[1756994746222,0.1152,4353.9,4353.7,2.29688707]
[1756994746421,0.965,4355.2,4353.8,0.9293]